bitfinex/quotes_BTCUSD_20250619
["timestamp","ask_amount","ask_price","bid_price","bid_amount"]
[1750292444758,0.38720323,104930.0,104920.0,0.27011353]
[1750292444981,0.75408752,104930.0,104920.0,0.27011353]
[1750292445189,0.73785406,104930.0,104920.0,0.27011353]
[1750292445407,0.73885397,104930.0,104920.0,0.27011353]
[1750292445619,0.73885397,104930.0,104920.0,0.36635529]
[1750292446458,0.72932454,104930.0,104920.0,0.36635529]
[1750292447105,0.74838349,104930.0,104920.0,0.36635529]
[1750292447546,0.38820278,104930.0,104920.0,0.36635529]
[1750292447806,0.7483834,104930.0,104920.0,0.36635529]
[1750292448258,0.75791301,104930.0,104920.0,0.36635529]
[1750292449093,0.77697269,104930.0,104920.0,0.36635529]
[1750292449913,0.95804715,104930.0,104920.0,0.3916231]
[1750292450180,0.95804715,104930.0,104920.0,0.37585371]
[1750292450387,0.95804715,104930.0,104920.0,0.38538423]
[1750292450599,0.7674439,104930.0,104920.0,0.41308423]
[1750292450812,0.7674439,104930.0,104920.0,0.42261466]
[1750292451305,0.74838385,104930.0,104920.0,0.44831466]
[1750292451531,0.75791383,104930.0,104920.0,0.44831466]
[1750292451770,0.7674439,104930.0,104920.0,0.44831466]
[1750292453144,0.40726328,104930.0,104920.0,0.44831466]
[1750292453363,0.75791374,104930.0,104920.0,0.44831466]
[1750292453816,0.76744372,104930.0,104920.0,0.44831466]
[1750292454376,0.77697379,104930.0,104920.0,0.44831466]
[1750292454880,0.95804789,104930.0,104920.0,0.42925371]
[1750292457539,0.95804789,104930.0,104920.0,0.43878423]
[1750292458288,0.40726402,104930.0,104920.0,0.43878423]
[1750292458500,0.40726402,104930.0,104920.0,0.44831466]
[1750292458501,0.74838404,104930.0,104920.0,0.44831466]
[1750292458918,0.75791402,104930.0,104920.0,0.44831466]
[1750292460565,0.76744336,104930.0,104920.0,0.44831466]
[1750292460814,0.77697343,104930.0,104920.0,0.44831466]
[1750292462169,0.9675775,104930.0,104920.0,0.43878423]
[1750292462407,0.95804789,104930.0,104920.0,0.42925371]
[1750292463475,0.74838441,104930.0,104920.0,0.43878414]
[1750292463726,0.73885415,104930.0,104920.0,0.43878414]
[1750292463973,0.75791338,104930.0,104920.0,0.43878414]
[1750292464186,0.76744336,104930.0,104920.0,0.43878414]
[1750292465255,0.75791328,104930.0,104920.0,0.43878414]
[1750292466312,0.74838331,104930.0,104920.0,0.5350259]
[1750292466522,0.73885388,104930.0,104920.0,0.5350259]
[1750292466775,0.74838331,104930.0,104920.0,0.5350259]
[1750292466993,0.72932454,104930.0,104920.0,0.5350259]
[1750292467414,0.38932454,104930.0,104920.0,0.5350259]
[1750292467628,0.02914392,104930.0,104920.0,0.5350259]
[1750292468494,0.38932454,104930.0,104920.0,0.5350259]
[1750292472359,0.39885397,104930.0,104920.0,0.5350259]
[1750292472574,0.38932454,104930.0,104920.0,0.5350259]
[1750292475803,0.02914392,104930.0,104920.0,0.5350259]
[1750292476777,0.02914392,104930.0,104920.0,0.59048675]
[1750292477008,0.02914392,104930.0,104920.0,0.95066737]
[1750292477464,0.02714392,104930.0,104920.0,0.95066737]
[1750292477683,0.02614392,104930.0,104920.0,0.95066737]
[1750292477853,0.02614392,104930.0,104920.0,0.95266737]
[1750292478080,0.02614392,104930.0,104920.0,0.95466737]
[1750292479609,0.02614392,104930.0,104920.0,0.59448675]
[1750292480179,0.02614392,104930.0,104920.0,0.62332076]
[1750292480729,0.02614392,104930.0,104920.0,0.59448675]
[1750292481640,0.02614392,104930.0,104920.0,0.95466737]
[1750292485818,0.02614392,104930.0,104920.0,0.98256848]
[1750292488304,0.02614392,104930.0,104920.0,1.01120848]
[1750292488723,0.02614392,104930.0,104920.0,1.00720848]
[1750292489124,0.02614392,104930.0,104920.0,1.01520848]
[1750292491392,0.02614392,104930.0,104920.0,0.98656848]
[1750292492536,0.02614392,104930.0,104920.0,0.82992848]
[1750292492789,0.02614392,104930.0,104920.0,0.98636848]
[1750292493533,0.02614392,104930.0,104920.0,0.98664848]
[1750292502369,0.02614392,104930.0,104920.0,1.06286989]
[1750292503442,0.02614392,104930.0,104920.0,1.06258989]
[1750292509283,0.02614392,104930.0,104920.0,1.05858989]
[1750292509701,0.02614392,104930.0,104920.0,1.06158989]
[1750292509909,0.02614392,104930.0,104920.0,1.05758989]
[1750292510301,0.02614392,104930.0,104920.0,1.10758989]
[1750292510517,0.02614392,104930.0,104920.0,1.11158989]
[1750292515261,0.02614392,104930.0,104920.0,0.75140927]
[1750292515505,0.02614392,104930.0,104920.0,1.11158989]
[1750292517137,0.02614392,104930.0,104920.0,0.75140927]
[1750292517362,0.02614392,104930.0,104920.0,1.11158989]
[1750292519356,0.02614392,104930.0,104920.0,0.95514989]
[1750292519582,0.02614392,104930.0,104920.0,1.11162989]
[1750292522095,0.02614392,104930.0,104920.0,1.42540848]
[1750292522322,0.02614392,104930.0,104920.0,1.52068524]
[1750292522756,0.02614392,104930.0,104920.0,1.54932124]
[1750292523915,0.02614392,104930.0,104920.0,1.54632124]
[1750292525369,0.02614392,104930.0,104920.0,1.54232124]
[1750292526007,0.02614392,104930.0,104920.0,1.55032124]
[1750292532539,0.06349206,104940.0,104930.0,0.71873348]
[1750292532540,0.03273031,104940.0,104930.0,0.71873348]
[1750292532783,0.03273031,104940.0,104930.0,1.69165648]
[1750292533040,0.03273031,104940.0,104930.0,1.83293648]
[1750292533281,0.03273031,104940.0,104930.0,2.01788648]
[1750292534014,0.03273031,104940.0,104930.0,1.72028648]
[1750292535722,0.03273031,104940.0,104930.0,1.82056324]
[1750292535962,0.03273031,104940.0,104930.0,1.82656324]
[1750292536211,0.0718754,104950.0,104940.0,0.3766126]
[1750292536449,0.0718754,104950.0,104940.0,1.46618223]
[1750292538639,0.0718754,104950.0,104940.0,1.47018223]
[1750292539185,0.23592768,104960.0,104950.0,0.71659172]
[1750292539463,0.00092731,104960.0,104950.0,1.78115472]
[1750292539682,0.16254038,104970.0,104960.0,0.71657084]
[1750292539921,0.16254038,104970.0,104960.0,1.80596163]
[1750292540427,0.14745165,104970.0,104960.0,1.80596163]
[1750292541683,0.14745165,104970.0,104960.0,1.83458163]
[1750292542616,0.14745165,104970.0,104960.0,1.84558163]
[1750292542845,0.13592166,104970.0,104960.0,1.76987384]
[1750292543068,0.08826242,104970.0,104960.0,1.84558163]
[1750292543748,0.08826242,104970.0,104960.0,1.76987384]
[1750292547904,0.19515183,104980.0,104970.0,1.0967112]
[1750292548148,0.19515183,104980.0,104970.0,1.64675296]
[1750292548818,0.19515183,104980.0,104970.0,1.65675625]
[1750292549039,0.19515183,104980.0,104970.0,1.50055625]
[1750292549249,0.19515183,104980.0,104970.0,1.34529563]
[1750292549477,0.19515183,104980.0,104970.0,0.49059501]
[1750292549719,0.19515183,104980.0,104970.0,0.80807563]
[1750292549999,0.19515183,104980.0,104970.0,1.00499563]
[1750292550452,0.19515183,104980.0,104970.0,1.02639563]
[1750292552241,0.19515183,104980.0,104970.0,0.59481501]
[1750292552458,0.19515183,104980.0,104970.0,1.00499563]
[1750292552880,0.19515183,104980.0,104970.0,1.02679563]
[1750292553472,0.19515183,104980.0,104970.0,0.95503563]
[1750292553677,0.19515183,104980.0,104970.0,1.00503563]
[1750292554691,0.19515183,104980.0,104970.0,1.02763563]
[1750292555232,0.19515183,104980.0,104970.0,0.83067563]
[1750292555444,0.19515183,104980.0,104970.0,1.02751563]
[1750292555661,0.19515183,104980.0,104970.0,0.83067563]
[1750292555883,0.19515183,104980.0,104970.0,1.02751563]
[1750292557382,0.19515183,104980.0,104970.0,1.04931563]
[1750292557617,0.19515183,104980.0,104970.0,1.40949625]
[1750292557845,0.19515183,104980.0,104970.0,1.21265625]
[1750292558130,0.19515183,104980.0,104970.0,1.40953625]
[1750292558344,0.19515183,104980.0,104970.0,1.40941625]
[1750292559233,0.19515183,104980.0,104970.0,1.04923563]
[1750292559451,0.19515183,104980.0,104970.0,0.85247563]
[1750292559662,0.19515183,104980.0,104970.0,1.04923563]
[1750292560274,0.19515183,104980.0,104970.0,0.85247563]
[1750292560490,0.19515183,104980.0,104970.0,1.43799925]
[1750292561358,0.19331183,104980.0,104970.0,1.43799925]
[1750292562556,0.19331183,104980.0,104970.0,1.51370704]
[1750292562774,0.19331183,104980.0,104970.0,1.31698704]
[1750292562959,0.19331183,104980.0,104970.0,1.51366704]
[1750292563742,0.19331183,104980.0,104970.0,1.31698704]
[1750292563952,0.19331183,104980.0,104970.0,1.51362704]
[1750292564817,0.19331183,104980.0,104970.0,1.31698704]
[1750292565254,0.19331183,104980.0,104970.0,1.51362704]
[1750292565996,0.19331183,104980.0,104970.0,1.31698704]
[1750292566217,0.19331183,104980.0,104970.0,1.51362704]
[1750292568938,0.19331183,104980.0,104970.0,1.77791925]
[1750292569426,0.19331183,104980.0,104970.0,1.87319601]
[1750292570180,0.19331183,104980.0,104970.0,1.86919601]
[1750292570420,0.19331183,104980.0,104970.0,1.87419601]
[1750292571339,0.19331183,104980.0,104970.0,1.87019601]
[1750292571554,0.19331183,104980.0,104970.0,1.87619601]
[1750292573099,0.19331183,104980.0,104970.0,2.17379601]
[1750292573973,0.19331183,104980.0,104970.0,1.45343477]
[1750292574189,0.19331183,104980.0,104970.0,2.17379601]
[1750292575319,0.19331183,104980.0,104970.0,1.43163477]
[1750292575556,0.19331183,104980.0,104970.0,1.81351539]
[1750292575773,0.19331183,104980.0,104970.0,2.17369601]
[1750292578821,0.19331183,104980.0,104970.0,1.87609601]
[1750292580885,0.19331183,104980.0,104970.0,1.78081925]
[1750292581099,0.05032867,104980.0,104970.0,1.8567838]
[1750292581317,0.05032867,104980.0,104970.0,1.78081925]
[1750292581538,0.05032867,104980.0,104970.0,2.17881925]
[1750292581775,0.00222677,104980.0,104970.0,2.58307987]
[1750292581999,0.00222677,104980.0,104970.0,2.67803556]
[1750292582216,0.18497063,104990.0,104980.0,0.77402909]
[1750292582429,0.18497063,104990.0,104980.0,1.79169209]
[1750292582645,0.18497063,104990.0,104980.0,1.83894172]
[1750292582861,0.17439238,104990.0,104980.0,1.83894172]
[1750292583554,0.17439238,104990.0,104980.0,1.68298172]
[1750292583781,0.17439238,104990.0,104980.0,1.87958172]
[1750292584012,0.16939238,104990.0,104980.0,1.87958172]
[1750292585165,0.16939238,104990.0,104980.0,1.88958172]
[1750292585838,0.16939238,104990.0,104980.0,1.89758172]
[1750292585839,0.12173286,104990.0,104980.0,1.89758172]
[1750292586056,0.07407334,104990.0,104980.0,1.97336032]
[1750292586299,0.07407334,104990.0,104980.0,1.9733579]
[1750292587524,0.05462185,105000.0,104990.0,0.73828823]
[1750292587763,0.05462185,105000.0,104990.0,1.71085123]
[1750292588259,0.05462185,105000.0,104990.0,1.73946323]
[1750292588748,0.05462185,105000.0,104990.0,1.74546323]
[1750292588964,0.05462185,105000.0,104990.0,1.75346323]
[1750292590562,0.05462185,105000.0,104990.0,1.98222323]
[1750292592996,0.05462185,105000.0,104990.0,2.05799941]
[1750292593670,0.05462185,105000.0,104990.0,2.35559941]
[1750292597624,0.05462185,105000.0,104990.0,2.37477892]
[1750292599430,0.06364014,105010.0,105000.0,1.4385486]
[1750292599703,0.06364014,105010.0,105000.0,2.10454853]
[1750292600599,0.06364014,105010.0,105000.0,2.10954853]
[1750292601499,0.06364014,105010.0,105000.0,2.11554853]
[1750292606074,2.317e-05,105010.0,105000.0,2.21594853]
[1750292606279,2.317e-05,105010.0,105000.0,2.14023036]
[1750292606674,5e-05,105020.0,105010.0,0.7192665]
[1750292606865,5e-05,105020.0,105010.0,1.40731481]
[1750292607519,5e-05,105020.0,105010.0,1.43592181]
[1750292607986,5e-05,105020.0,105010.0,1.43992181]
[1750292608189,5e-05,105020.0,105010.0,1.44392181]
[1750292610441,5e-05,105020.0,105010.0,1.43992181]
[1750292610855,5e-05,105020.0,105010.0,1.44092181]
[1750292611523,5e-05,105020.0,105010.0,1.74452181]
[1750292613265,5e-05,105020.0,105010.0,1.97320181]
[1750292614193,5e-05,105020.0,105010.0,1.13634119]
[1750292614406,5e-05,105020.0,105010.0,1.67038181]
[1750292614783,5e-05,105020.0,105010.0,1.62038181]
[1750292615041,5e-05,105020.0,105010.0,1.67038181]
[1750292616068,5e-05,105020.0,105010.0,1.59463588]
[1750292616637,5e-05,105020.0,105010.0,1.68959157]
[1750292616857,5e-05,105020.0,105010.0,1.71289157]
[1750292619075,5e-05,105020.0,105010.0,1.35271095]
[1750292619277,5e-05,105020.0,105010.0,1.68959157]
[1750292620606,5e-05,105020.0,105010.0,1.71379157]
[1750292623193,5e-05,105020.0,105010.0,2.01139157]
[1750292623402,5e-05,105020.0,105010.0,2.03469157]
[1750292624385,5e-05,105020.0,105010.0,1.83833157]
[1750292624596,5e-05,105020.0,105010.0,2.03465157]
[1750292625663,0.07483992,105030.0,105020.0,1.43980689]
[1750292625878,0.07483992,105030.0,105020.0,1.78684434]
[1750292626090,0.07483992,105030.0,105020.0,1.42666372]
[1750292627121,0.07483992,105030.0,105020.0,1.43166372]
[1750292628459,0.07483992,105030.0,105020.0,2.08944434]
[1750292629570,0.07235992,105030.0,105020.0,2.08944434]
[1750292630751,0.03709615,105040.0,105030.0,1.41598603]
[1750292631016,0.03709615,105040.0,105030.0,1.99038779]
[1750292631273,0.03285149,105040.0,105030.0,1.37042655]
[1750292631530,0.09495798,105050.0,105040.0,0.67350395]
[1750292631531,0.09491799,105050.0,105040.0,0.67350395]
[1750292631797,0.09491799,105050.0,105040.0,1.36186738]
[1750292632084,0.14141799,105050.0,105040.0,0.79544676]
[1750292632331,0.14141799,105050.0,105040.0,0.94506971]
[1750292632598,0.14141799,105050.0,105040.0,1.3149879]
[1750292632871,0.14141799,105050.0,105040.0,1.3649879]
[1750292633162,0.11771799,105050.0,105040.0,1.1682679]
[1750292633413,0.09491799,105050.0,105040.0,1.3649879]
[1750292633837,0.09491799,105050.0,105040.0,1.3689879]
[1750292634980,0.09491799,105050.0,105040.0,1.7120879]
[1750292635840,0.09271918,105050.0,105040.0,1.7120879]
[1750292637234,0.09271918,105050.0,105040.0,1.78778895]
[1750292637448,0.09271918,105050.0,105040.0,1.7120879]
[1750292638876,0.09271918,105050.0,105040.0,1.74086086]
[1750292639840,0.09271918,105050.0,105040.0,1.71936086]
[1750292640690,0.09271918,105050.0,105040.0,1.79506191]
[1750292640900,0.09271918,105050.0,105040.0,1.49746191]
[1750292642383,0.09271918,105050.0,105040.0,1.51966191]
[1750292646844,0.09271918,105050.0,105040.0,1.81726191]
[1750292648342,0.09271918,105050.0,105040.0,1.38138024]
[1750292648560,0.09271918,105050.0,105040.0,1.74156086]
[1750292649698,0.11581918,105050.0,105040.0,1.12391939]
[1750292649928,0.11581918,105050.0,105040.0,1.75632639]
[1750292650189,0.11581918,105050.0,105040.0,1.77086724]
[1750292650416,0.11581918,105050.0,105040.0,1.77098724]
[1750292650874,0.11581918,105050.0,105040.0,1.72098724]
[1750292651094,0.11581918,105050.0,105040.0,1.77098724]
[1750292652025,0.11581918,105050.0,105040.0,1.57426724]
[1750292652250,0.11581918,105050.0,105040.0,1.77094724]
[1750292652713,0.09271918,105050.0,105040.0,1.69532086]
[1750292652939,0.09271918,105050.0,105040.0,1.20104086]
[1750292653182,0.09271918,105050.0,105040.0,1.39768086]
[1750292653428,0.09271918,105050.0,105040.0,1.47335244]
[1750292654277,0.11381918,105050.0,105040.0,1.47335244]
[1750292654947,0.09271918,105050.0,105040.0,1.47335244]
[1750292655147,0.09271918,105050.0,105040.0,1.44158086]
[1750292655360,0.09271918,105050.0,105040.0,1.53653655]
[1750292655957,0.09271918,105050.0,105040.0,1.17635593]
[1750292656159,0.09271918,105050.0,105040.0,1.53653655]
[1750292658656,0.09271918,105050.0,105040.0,1.83413655]
[1750292663157,0.09271918,105050.0,105040.0,1.73918086]
[1750292665224,0.09271918,105050.0,105040.0,1.75826086]
[1750292668038,0.09271918,105050.0,105040.0,1.70826086]
[1750292668216,0.09271918,105050.0,105040.0,1.75826086]
[1750292670339,0.09271918,105050.0,105040.0,1.70826086]
[1750292670489,0.09271918,105050.0,105040.0,1.75826086]
[1750292672822,0.01890206,105050.0,105040.0,1.85298057]
[1750292674821,0.01890206,105050.0,105040.0,1.65634057]
[1750292675044,0.01890206,105050.0,105040.0,1.75834086]
[1750292679201,0.01890206,105050.0,105040.0,1.70834086]
[1750292679649,0.01890206,105050.0,105040.0,1.15754024]
[1750292679861,0.04200206,105050.0,105040.0,1.77572825]
[1750292680077,0.04200206,105050.0,105040.0,1.69994001]
[1750292680282,0.04200206,105050.0,105040.0,1.41688086]
[1750292680491,0.04200206,105050.0,105040.0,1.40234001]
[1750292680746,0.04200206,105050.0,105040.0,1.41688086]
[1750292680956,0.01890206,105050.0,105040.0,1.41688086]
[1750292681171,0.09403799,105080.0,105040.0,1.39784095]
[1750292681388,0.09403799,105080.0,105070.0,0.65514235]
[1750292681605,0.09403799,105080.0,105070.0,0.85198235]
[1750292684238,0.09403799,105080.0,105070.0,0.8665232]
[1750292684454,0.10973799,105080.0,105070.0,0.8665232]
[1750292686715,0.10973799,105080.0,105070.0,1.22670382]
[1750292687263,0.10973799,105080.0,105070.0,0.8665232]
[1750292687518,0.10973799,105080.0,105070.0,1.22670382]
[1750292687726,0.10973799,105080.0,105070.0,0.88670382]
[1750292688363,0.10623799,105080.0,105070.0,0.88670382]
[1750292688567,0.10623799,105080.0,105070.0,0.5265232]
[1750292688776,0.10623799,105080.0,105070.0,0.88670382]
[1750292689341,0.10623799,105080.0,105070.0,0.5265232]
[1750292689542,0.10623799,105080.0,105070.0,0.88670382]
[1750292690575,0.10623799,105080.0,105070.0,0.5265232]
[1750292691021,0.10623799,105080.0,105070.0,0.5273232]
[1750292692917,0.09403799,105080.0,105070.0,0.5273232]
[1750292696972,0.09403799,105080.0,105070.0,0.88632349]
[1750292697383,0.09291799,105080.0,105070.0,0.88632349]
[1750292702437,0.09291799,105080.0,105070.0,0.5273232]
[1750292702656,0.09291799,105080.0,105070.0,0.88632349]
[1750292703500,0.46411828,105080.0,105070.0,0.31614235]
[1750292703687,0.10701799,105080.0,105070.0,0.51266235]
[1750292703902,0.46601828,105080.0,105070.0,0.51266235]
[1750292706135,0.10701799,105080.0,105070.0,0.87166264]
[1750292706347,0.10511799,105080.0,105070.0,0.87166264]
[1750292708311,0.09291799,105080.0,105070.0,0.51266235]
[1750292708527,0.09291799,105080.0,105070.0,0.87166264]
[1750292711269,0.09291799,105080.0,105070.0,0.31614235]
[1750292711462,0.10511799,105080.0,105070.0,0.51266235]
[1750292712540,0.09291799,105080.0,105070.0,0.51266235]
[1750292714274,0.09291799,105080.0,105070.0,0.87166264]
[1750292714753,0.09291799,105080.0,105070.0,0.51266235]
[1750292716885,0.09291799,105080.0,105070.0,0.53316235]
[1750292717550,0.09291799,105080.0,105070.0,0.55396235]
[1750292719453,0.09291799,105080.0,105070.0,0.92750349]
[1750292721581,0.09291799,105080.0,105070.0,1.3432942]
[1750292723264,0.09291799,105080.0,105070.0,1.3932942]
[1750292728045,0.09291799,105080.0,105070.0,1.80229449]
[1750292728259,0.09291799,105080.0,105070.0,1.4718892]
[1750292729694,0.09291799,105080.0,105070.0,1.83088949]
[1750292729906,0.09291799,105080.0,105070.0,1.83288949]
[1750292730128,0.09291799,105080.0,105070.0,1.83188949]
[1750292730382,0.09291799,105080.0,105070.0,1.83388949]
[1750292731160,0.09291799,105080.0,105070.0,1.78388949]
[1750292731370,0.09291799,105080.0,105070.0,1.83388949]
[1750292733639,0.09291799,105080.0,105070.0,1.85281849]
[1750292734295,0.09291799,105080.0,105070.0,1.13481791]
[1750292734540,0.09291799,105080.0,105070.0,1.85057849]
[1750292734796,0.09291799,105080.0,105070.0,1.84857849]
[1750292735722,0.09291799,105080.0,105070.0,1.85257849]
[1750292736595,0.09291799,105080.0,105070.0,1.85657849]
[1750292739458,0.09291799,105080.0,105070.0,1.80657849]
[1750292739650,0.09291799,105080.0,105070.0,1.85657849]
[1750292741337,0.09291799,105080.0,105070.0,1.80657849]
[1750292741565,0.09291799,105080.0,105070.0,1.85657849]
[1750292744219,0.09291799,105080.0,105070.0,2.08513849]
[1750292744890,0.09291799,105080.0,105070.0,1.88885849]
[1750292745027,0.09291799,105080.0,105070.0,1.99037878]
[1750292745242,0.09291799,105080.0,105070.0,2.00945878]
[1750292746406,0.09291799,105080.0,105070.0,2.10417849]
[1750292750268,0.09291799,105080.0,105070.0,2.05417849]
[1750292750515,0.09291799,105080.0,105070.0,2.10417849]
[1750292751669,0.09291799,105080.0,105070.0,2.05417849]
[1750292751900,0.09291799,105080.0,105070.0,2.10417849]
[1750292753407,0.09291799,105080.0,105070.0,1.38617791]
[1750292753641,0.09291799,105080.0,105070.0,2.10417849]
[1750292754418,0.09291799,105080.0,105070.0,1.38617791]
[1750292754653,0.09291799,105080.0,105070.0,2.10417849]
[1750292754895,0.09291799,105080.0,105070.0,2.05417849]
[1750292755126,0.09291799,105080.0,105070.0,2.10417849]
[1750292758278,0.09291799,105080.0,105070.0,1.38617791]
[1750292758509,0.09291799,105080.0,105070.0,2.10417849]
[1750292759300,0.09291799,105080.0,105070.0,2.05417849]
[1750292759532,0.09291799,105080.0,105070.0,2.10417849]
[1750292759976,0.09291799,105080.0,105070.0,2.10437849]
[1750292760183,0.09291799,105080.0,105070.0,2.03529849]
[1750292760383,0.09291799,105080.0,105070.0,2.08529849]
[1750292760812,0.09291799,105080.0,105070.0,2.03529849]
[1750292761013,0.09291799,105080.0,105070.0,2.08529849]
[1750292763095,0.09291799,105080.0,105070.0,1.88885849]
[1750292763297,0.09291799,105080.0,105070.0,2.08529849]
[1750292763496,0.09291799,105080.0,105070.0,2.08357849]
[1750292769180,0.09291799,105080.0,105070.0,2.03357849]
[1750292769383,0.09291799,105080.0,105070.0,2.08357849]
[1750292771447,0.09291799,105080.0,105070.0,1.98885878]
[1750292773458,0.01934442,105080.0,105070.0,2.0835629]
[1750292773713,0.01934442,105080.0,105070.0,1.98885878]
[1750292773928,0.12526008,105090.0,105080.0,0.35947974]
[1750292774147,0.12526008,105090.0,105080.0,1.40532424]
[1750292774595,0.12526008,105090.0,105080.0,1.43391624]
[1750292775283,0.12526008,105090.0,105080.0,1.47839624]
[1750292777815,0.12526008,105090.0,105080.0,1.49293709]
[1750292780055,0.12526008,105090.0,105080.0,1.72149709]
[1750292784010,0.12526008,105090.0,105080.0,1.64573493]
[1750292784227,0.12526008,105090.0,105080.0,1.74043905]
[1750292784858,0.12526008,105090.0,105080.0,1.69043905]
[1750292785283,0.12526008,105090.0,105080.0,1.74043905]
[1750292786412,0.12526008,105090.0,105080.0,2.39703934]
[1750292787389,0.12526008,105090.0,105080.0,2.39503934]
[1750292787641,5e-05,105100.0,105090.0,0.33339977]
[1750292787862,5e-05,105100.0,105090.0,1.85683133]
[1750292788183,5e-05,105100.0,105090.0,1.49783104]
[1750292788431,5e-05,105100.0,105090.0,1.85683133]
[1750292789151,5e-05,105100.0,105090.0,1.86283133]
[1750292789412,0.26272332,105110.0,105100.0,1.74057981]
[1750292789648,0.26272332,105110.0,105100.0,1.67418128]
[1750292791078,0.26272332,105110.0,105100.0,1.68218128]
[1750292791554,0.26272332,105110.0,105100.0,1.71076728]
[1750292792541,0.25320085,105110.0,105100.0,1.71076728]
[1750292792773,0.24367838,105110.0,105100.0,1.71076728]
[1750292793254,0.23415591,105110.0,105100.0,1.71076728]
[1750292793739,0.22463344,105110.0,105100.0,1.71076728]
[1750292793988,0.21511256,105110.0,105100.0,2.41736757]
[1750292794478,0.20559168,105110.0,105100.0,2.41736757]
[1750292794961,0.1960708,105110.0,105100.0,2.41736757]
[1750292795208,0.18654992,105110.0,105100.0,2.11976757]
[1750292795594,0.18654992,105110.0,105100.0,2.19546245]
[1750292795726,0.17702904,105110.0,105100.0,2.11976757]
[1750292795947,0.16750816,105110.0,105100.0,2.11976757]
[1750292796414,0.15798728,105110.0,105100.0,2.11976757]
[1750292796637,0.1246642,105110.0,105100.0,2.11976757]
[1750292796860,0.13590727,105120.0,105110.0,0.71545813]
[1750292797082,0.13590727,105120.0,105110.0,2.19670598]
[1750292797309,0.0454589,105120.0,105110.0,2.19670598]
[1750292797537,0.03593802,105120.0,105110.0,2.19670598]
[1750292797971,5e-05,105130.0,105120.0,0.67333731]
[1750292798203,5e-05,105130.0,105120.0,2.08495994]
[1750292798424,0.1460413,105140.0,105130.0,0.3754165]
[1750292798646,0.1460413,105140.0,105130.0,1.57393884]
[1750292798854,0.13652042,105140.0,105130.0,1.56393884]
[1750292799277,0.12699954,105140.0,105130.0,1.56393884]
[1750292799520,0.11747866,105140.0,105130.0,1.56393884]
[1750292799972,0.10796049,105140.0,105130.0,0.84593826]
[1750292800172,0.10796049,105140.0,105130.0,1.60441884]
[1750292800389,0.10796049,105140.0,105130.0,1.60841884]
[1750292800622,0.10796049,105140.0,105130.0,1.61788548]
[1750292800897,0.10796049,105140.0,105130.0,1.21833064]
[1750292801137,0.10796049,105140.0,105130.0,1.25833064]
[1750292801630,0.10796049,105140.0,105130.0,1.26233064]
[1750292802910,0.10796049,105140.0,105130.0,1.29017416]
[1750292804981,0.10796049,105140.0,105130.0,0.93268842]
[1750292805184,0.10796049,105140.0,105130.0,1.29113416]
[1750292805606,0.10796049,105140.0,105130.0,0.41696842]
[1750292805827,0.10796049,105140.0,105130.0,1.19895416]
[1750292806250,0.10796049,105140.0,105130.0,1.15899416]
[1750292806683,0.10796049,105140.0,105130.0,1.17909416]
[1750292806891,0.10796049,105140.0,105130.0,1.15899416]
[1750292807370,0.12446049,105140.0,105130.0,0.35086093]
[1750292807578,0.12446049,105140.0,105130.0,0.52021741]
[1750292808212,0.12446049,105140.0,105130.0,0.32301741]
[1750292808691,0.48290623,105140.0,105130.0,0.36357741]
[1750292809122,0.48290623,105140.0,105130.0,0.52017741]
[1750292809560,0.12446049,105140.0,105130.0,0.52017741]
[1750292809807,0.12446049,105140.0,105130.0,0.51617741]
[1750292810268,0.12446049,105140.0,105130.0,0.31701741]
[1750292810484,0.12446049,105140.0,105130.0,0.51421741]
[1750292810697,0.12446049,105140.0,105130.0,0.51621741]
[1750292812022,0.10796049,105140.0,105130.0,0.96585805]
[1750292812241,0.10796049,105140.0,105130.0,0.98545805]
[1750292812460,0.10796049,105140.0,105130.0,1.75640379]
[1750292812690,0.10796049,105140.0,105130.0,1.79640379]
[1750292812922,0.10796049,105140.0,105130.0,1.54204622]
[1750292813160,0.10796049,105140.0,105130.0,1.46653505]
[1750292813376,0.10796049,105140.0,105130.0,1.53804622]
[1750292813875,0.10796049,105140.0,105130.0,1.54604622]
[1750292814331,0.10796049,105140.0,105130.0,1.34884622]
[1750292814551,0.10796049,105140.0,105130.0,1.18984048]
[1750292814771,0.10796049,105140.0,105130.0,1.54828622]
[1750292814994,0.10796049,105140.0,105130.0,1.55228622]
[1750292815480,0.10796049,105140.0,105130.0,1.55828622]
[1750292816673,0.10796049,105140.0,105130.0,1.91673196]
[1750292816921,0.10796049,105140.0,105130.0,1.55828622]
[1750292817403,0.10796049,105140.0,105130.0,1.91673196]
[1750292817615,0.10796049,105140.0,105130.0,2.21433196]
[1750292817873,0.16559622,105150.0,105140.0,0.09]
[1750292818112,0.17563025,105160.0,105150.0,0.32327489]
[1750292818339,0.17563025,105160.0,105150.0,1.41598218]
[1750292819050,0.17563025,105160.0,105150.0,1.25566218]
[1750292819266,0.17563025,105160.0,105150.0,1.79910218]
[1750292819980,0.17563025,105160.0,105150.0,1.80510218]
[1750292820217,0.17563025,105160.0,105150.0,1.81310218]
[1750292821989,0.17563025,105160.0,105150.0,2.17154792]
[1750292822235,0.13912697,105180.0,105170.0,1.42492477]
[1750292822472,0.13912697,105180.0,105170.0,1.90976653]
[1750292822969,0.13912697,105180.0,105170.0,1.93833053]
[1750292824123,0.13912697,105180.0,105170.0,0.88543905]
[1750292824366,0.13912697,105180.0,105170.0,1.94233053]
[1750292824618,0.13912697,105180.0,105170.0,1.94633053]
[1750292826938,0.13912697,105180.0,105170.0,1.52703905]
[1750292827158,0.13912697,105180.0,105170.0,2.24393053]
[1750292829120,0.13912697,105180.0,105170.0,1.92844479]
[1750292829341,0.13912697,105180.0,105170.0,1.72528479]
[1750292829574,0.13912697,105180.0,105170.0,1.58084479]
[1750292829788,0.13912697,105180.0,105170.0,1.60814479]
[1750292830264,0.13912697,105180.0,105170.0,1.63214479]
[1750292831141,0.13912697,105180.0,105170.0,1.42898479]
[1750292831366,0.13664697,105180.0,105170.0,1.63210479]
[1750292834750,0.13664697,105180.0,105170.0,1.27365905]
[1750292834958,0.13664697,105180.0,105170.0,1.63210479]
[1750292837163,0.13664697,105180.0,105170.0,1.59210479]
[1750292837385,0.13664697,105180.0,105170.0,1.63210479]
[1750292837596,0.13664697,105180.0,105170.0,1.27365905]
[1750292837813,0.13664697,105180.0,105170.0,1.63210479]
[1750292838240,0.13664697,105180.0,105170.0,1.27365905]
[1750292838462,0.13664697,105180.0,105170.0,1.63210479]
[1750292839159,0.13664697,105180.0,105170.0,1.92970479]
[1750292841065,0.13664697,105180.0,105170.0,1.98605985]
[1750292841490,0.13664697,105180.0,105170.0,1.92970479]
[1750292841711,0.13664697,105180.0,105170.0,2.00500053]
[1750292842403,0.13664697,105180.0,105170.0,1.80188053]
[1750292842626,0.13664697,105180.0,105170.0,2.00504053]
[1750292845272,0.13664697,105180.0,105170.0,1.64659479]
[1750292845477,0.13664697,105180.0,105170.0,2.00504053]
[1750292846569,0.13664697,105180.0,105170.0,1.92974479]
[1750292847884,0.13664697,105180.0,105170.0,2.02444891]
[1750292849554,0.13664697,105180.0,105170.0,1.98444891]
[1750292849775,0.13664697,105180.0,105170.0,2.02444891]
[1750292851079,0.13664697,105180.0,105170.0,1.66600317]